Cogmind - Beta 12 @@@ ROGUE MODE // 2023.04.29 @ 22:30:35 Player: kasaphescent Result: Destroyed by G-67 Veteran with Field Laser Performance ------------- Evolutions (4) 2000 Regions Visited (15) 3000 Robots Destroyed (99) 495 Value Destroyed (3659) 3659 Prototype IDs (38) 760 Alien Tech Used (0) 0 Bonus (814) 814 TOTAL SCORE: 10728 Bonus ------- Follower Combat Kills 338 Aligned with FarCom 300 Met Data Miner 300 Friendly Fire -124 Cogmind --------- Core Integrity 0/850 Matter 290/300 Energy 35/100 System Corruption 9% Temperature Cool (12) Movement Core (50) Location -6/Lower Caves Parts ------- > --- POWER (2) -------- (None) > --- PROPULSION (4) --- (None) > --- UTILITY (7) ------ (None) > --- WEAPON (2) ------- (None) > --- INVENTORY (5) ---- Light Angular Momentum Engine PSU Rigger Cooled Particle Cannon Cooled Particle Cannon Long-range Missile Launcher Peak State ------------ > --- POWER ------------ Light Angular Momentum Engine Light Antimatter Reactor > --- PROPULSION ------- Advanced Treads Medium Treads Armored Huge Wheel > --- UTILITY ---------- Advanced Heat Sink Advanced Heat Sink Huge Storage Unit Enhanced Optical Array Improved Signal Interpreter Advanced Targeting Computer Hardened Medium Armor Plating > --- WEAPON ----------- Cooled Pulse Rifle Heavy Plasma Cannon > --- INVENTORY -------- Light Nuclear Core Improved Deuterium Engine Cooled Deuterium Engine Micro Nuclear Core Light Angular Momentum Engine Light Fission Core Neutrino Core Neutrino Core Neutrino Core Light Treads Improved Medium Treads Compact Wheel Compact Wheel Improved Terrain Scan Processor Improved Hardlight Generator PSU Rigger Lightning Gun Cooled Pulse Rifle Cooled Pulse Rifle EM Pulse Cannon Cooled Particle Cannon Cooled Particle Cannon Long-range Missile Launcher Long-range Missile Launcher Long-range Missile Launcher [Rating: 73] Favorites ----------- Power Makeshift Power Source Engine Makeshift Power Source Power Core Neutrino Core Reactor Light Antimatter Reactor Propulsion Light Treads Treads Light Treads Leg Improved Titanium Leg Wheel Compact Wheel Utility Advanced Targeting Computer Device Advanced Heat Sink Storage Huge Storage Unit Processor Advanced Targeting Computer Hackware Hacking Suite Protection Hardened Medium Armor Plating Weapon Cooled Particle Cannon Energy Gun Cooled Pulse Rifle Energy Cannon Cooled Particle Cannon Ballistic Gun Assault Rifle Ballistic Cannon Light Cannon Launcher Long-range Missile Launcher Build | -11 -10 -10 -9 -9 -9 -8 -8 -7 -7 -7 -7 -6 -6 -6 -6 ------- Run | Jun Mat Min Mat Min Exi Min Mat Fac Low Low Dat Pro Fac Low Low Slots Evolved 8 | . . . 2 . . . 2 2 . . . . 2 . . Power 1 | . . . . . . . . . . . . . 1 . . Propulsion 2 | . . . 2 . . . . . . . . . . . . Utility 5 | . . . . . . . 2 2 . . . . 1 . . Weapon . | . . . . . . . . . . . . . . . . Parts Attached 160 | 6 8 1 3 . 4 5 19 21 . 13 2 19 30 22 7 Power 13 | 1 . . . . 1 . 2 1 . 1 . 1 2 4 . Engine 10 | 1 . . . . 1 . 1 1 . 1 . 1 2 2 . Core 2 | . . . . . . . 1 . . . . . . 1 . Reactor 1 | . . . . . . . . . . . . . . 1 . Propulsion 39 | 2 1 1 3 . . 4 4 6 . 2 . 4 4 3 5 Treads 19 | 1 . . 1 . . 2 1 3 . 1 . 4 1 2 3 Leg 3 | . . . . . . . . . . . . . 2 1 . Wheel 17 | 1 1 1 2 . . 2 3 3 . 1 . . 1 . 2 Hover . | . . . . . . . . . . . . . . . . Flight . | . . . . . . . . . . . . . . . . Utility 65 | 1 4 . . . 1 . 11 12 . 6 . 5 18 6 1 Device 28 | . 1 . . . . . 4 6 . 3 . 3 6 4 1 Storage 6 | 1 2 . . . 1 . 1 1 . . . . . . . Processor 8 | . 1 . . . . . 1 1 . . . 1 4 . . Hackware 1 | . . . . . . . . . . . . . 1 . . Protection 22 | . . . . . . . 5 4 . 3 . 1 7 2 . Artifact . | . . . . . . . . . . . . . . . . Weapon 43 | 2 3 . . . 2 1 2 2 . 4 2 9 6 9 1 Energy Gun 12 | 1 1 . . . 2 1 . 1 . . . . 2 3 1 Energy Cannon 19 | . . . . . . . 2 1 . 2 2 5 4 3 . Ballistic Gun 1 | 1 . . . . . . . . . . . . . . . Ballistic Cannon 2 | . 2 . . . . . . . . . . . . . . Launcher 9 | . . . . . . . . . . 2 . 4 . 3 . Special Weapon . | . . . . . . . . . . . . . . . . Impact Weapon . | . . . . . . . . . . . . . . . . Slashing Weapon . | . . . . . . . . . . . . . . . . Piercing Weapon . | . . . . . . . . . . . . . . . . Special Melee Weapon . | . . . . . . . . . . . . . . . . Unidentified Prototypes 4 | . . . . . . . 1 2 . . . . 1 . . Parts Lost 50 | . . . 1 . . 4 2 5 . . . 9 1 9 19 Power 6 | . . . . . . . . . . . . 1 . 3 2 Propulsion 22 | . . . 1 . . 4 1 3 . . . 3 1 1 8 Utility 16 | . . . . . . . 1 2 . . . 3 . 3 7 Weapon 6 | . . . . . . . . . . . . 2 . 2 2 Highest Loss Streak 18 | . . . 1 . . 4 2 2 . . . 5 1 5 18 To Critical Strikes . | . . . . . . . . . . . . . . . . Average Slot Usage (%) 93 | . 96 100 98 100 99 98 98 94 100 99 85 89 89 85 83 Engine 7 | . 14 14 11 11 11 11 8 7 7 7 7 7 6 3 5 Treads 15 | . 14 14 21 22 22 22 18 14 15 15 15 20 14 11 6 Wheel 12 | . 14 14 21 22 22 20 17 15 15 15 15 7 6 6 5 Device 10 | . 9 14 11 11 11 11 9 7 7 7 7 10 12 15 22 Storage 7 | . 14 14 11 11 11 11 9 7 7 7 7 7 6 6 6 Processor 11 | . 1 . . . . . 7 11 15 15 15 15 17 18 11 Protection 7 | . . . . . . . 8 12 15 14 15 7 6 4 . Energy Gun 2 | . 5 . . . 20 22 . . . . . . . 7 12 Energy Cannon 9 | . . . . . . . 17 14 15 14 1 9 11 4 . Ballistic Cannon 2 | . 16 28 22 22 . . . . . . . . . . . Naked Turns 1 | . . . . . . . . . . . . . . . 1 Heaviest Build 125 | 12 30 30 30 30 52 52 64 122 122 122 115 115 124 125 118 Greatest Support 90 | 10 16 16 32 32 32 40 32 26 22 22 22 22 28 28 90 Greatest Overweight (x) 10 | 1 2 2 1 . 1 1 3 5 5 5 5 8 10 4 4 Average Overweight (x) 3 | . 1 1 . . . 1 1 3 5 4 4 7 7 3 3 Largest Inventory Capacity 25 | 8 15 15 15 15 20 20 20 25 25 25 25 25 25 25 25 Average Capacity 22 | 6 12 15 15 15 16 20 20 23 25 25 25 25 25 25 24 Most Carried 25 | 6 15 15 15 15 15 15 20 25 25 25 25 25 25 25 25 Average Carried 20 | 3 10 15 13 15 14 10 18 21 25 24 25 22 24 23 24 Final Capacity 25 | 8 15 15 15 15 20 20 20 25 25 25 25 25 25 25 5 Final Carried 25 | 6 15 15 15 15 15 12 20 25 25 25 25 22 24 25 5 Class Distribution -------------------- 50% | Mutant 34% | Trapper-Mutant 14% | Scavenger-Mutant Dominant Class ---------------- Mutant | -10/Materials Mutant | -10/Mines Mutant | -9/Materials Mutant | -9/Mines Mutant | -9/Exiles Mutant | -8/Mines Mutant | -8/Materials Mutant | -7/Factory Mutant | -7/Lower Caves Mutant | -7/Lower Caves Mutant | -7/Data Miner Trapper-Mutant | -6/Proximity Caves Trapper-Mutant | -6/Factory Trapper-Mutant | -6/Lower Caves Scavenger-Mutant | -6/Lower Caves Resources | -11 -10 -10 -9 -9 -9 -8 -8 -7 -7 -7 -7 -6 -6 -6 -6 ----------- Run | Jun Mat Min Mat Min Exi Min Mat Fac Low Low Dat Pro Fac Low Low Matter Collected 2697 | 245 153 182 160 . 200 83 185 205 21 227 . 388 310 328 10 Remotely . | . . . . . . . . . . . . . . . . Salvage Created 3606 | . 153 101 104 . . 221 789 475 40 309 . 278 600 320 216 Parts 167 | . 13 8 7 . . 3 33 22 4 12 . 11 21 24 9 Haulers Intercepted 1 | . . . . . . . 1 . . . . . . . . Recyclers Shooed 1 | . . . . . . . . . . . . . 1 . . Parts Field Recycled . | . . . . . . . . . . . . . . . . Retrieved Matter . | . . . . . . . . . . . . . . . . Parts Self-Destructed 59 | . . . . . . . . . 4 4 . 19 . 20 12 Prevented 13 | . . . . . . . . . . 10 . 3 . . . Kills | -11 -10 -10 -9 -9 -9 -8 -8 -7 -7 -7 -7 -6 -6 -6 -6 ------- Run | Jun Mat Min Mat Min Exi Min Mat Fac Low Low Dat Pro Fac Low Low Combat Hostiles Destroyed 92 | . 5 8 4 . . 3 14 9 1 6 . 10 9 17 6 Guns 14 | . 5 . . . . 3 . . . . . . . 2 4 Cannons 47 | . . 8 4 . . . 14 8 1 1 . 3 7 1 . AOE 25 | . . . . . . . . 1 . 3 . 7 . 13 1 Classes Destroyed 17 | . 3 2 2 . . . 3 1 . 1 . 2 1 2 . Worker 3 | . . 1 . . . . . 2 . . . . . . . Hauler 1 | . . . . . . . 1 . . . . . . . . Recycler 2 | . . . . . . . 2 . . . . . . . . Minesweeper 1 | . . . . . . . . . . 1 . . . . . Mechanic 1 | . . . . . . . . . . . . . 1 . . Operator 1 | . . . 1 . . . . . . . . . . . . Drone 1 | . . . . . . . . . . . . 1 . . . Watcher 1 | . 1 . . . . . . . . . . . . . . Swarmer 30 | . 3 3 2 . . . 3 . . 2 . 2 . 11 4 Grunt 37 | . 2 2 . . . 3 6 7 . 3 . 6 5 2 1 Brawler 2 | . . . . . . . . . . . . 1 . 1 . Duelist 2 | . . . . . . . . . . . . . . 1 1 Sentry 10 | . . . 2 . . . 4 . . 1 . . 2 1 . Hunter 1 | . . . . . . . 1 . . . . . . . . Programmer 5 | . . . . . . . . 2 1 . . . 2 . . Behemoth 1 | . . . . . . . . . . . . . . 1 . Assembled 3 | . . 3 . . . . . . . . . . . . . Best Kill Streak 8 | . 5 3 2 . . 3 6 4 1 4 . 5 5 8 3 Combat Bots Only 8 | . 5 3 2 . . 3 5 4 1 4 . 5 5 8 3 Max Kills in Single Turn 4 | . 1 2 1 . . 1 2 1 1 2 . 2 2 4 1 Gunslinging . | . . . . . . . . . . . . . . . . Exploded 4 | . . . . . . . . 1 . 1 . 2 . 4 1 Melee . | . . . . . . . . . . . . . . . . Uniques/NPCs Destroyed . | . . . . . . . . . . . . . . . . Combat | -11 -10 -10 -9 -9 -9 -8 -8 -7 -7 -7 -7 -6 -6 -6 -6 -------- Run | Jun Mat Min Mat Min Exi Min Mat Fac Low Low Dat Pro Fac Low Low Damage Taken 7975 | . 112 194 148 . . 385 690 698 35 233 . 1162 775 1408 2135 Core 1267 | . 10 17 24 . . 47 86 43 12 24 . 141 44 197 622 Absorbed by Shields 306 | . . . . . . . . 18 . . . . . 126 162 Core Remaining (%) 84 | 100 . 89 . . . 82 84 . . . . 68 . . . Volleys Fired 251 | . 11 23 13 7 . 14 31 38 2 10 . 34 24 28 16 Largest 2 | . 2 2 2 2 . 2 2 2 2 2 . 2 2 2 2 Hottest 180 | . 85 70 70 70 . 130 60 60 60 129 . 95 180 110 40 Shots Fired 465 | . 22 46 26 14 . 23 62 76 4 11 . 53 47 49 32 Gun 103 | . 22 . . . . 23 . . . . . . 1 25 32 Cannon 329 | . . 46 26 14 . . 62 76 4 2 . 36 46 17 . Launcher 33 | . . . . . . . . . . 9 . 17 . 7 . Special . | . . . . . . . . . . . . . . . . Kinetic 97 | . 11 46 26 14 . . . . . . . . . . . Thermal 335 | . 11 . . . . 23 62 76 4 2 . 36 47 42 32 Explosive 22 | . . . . . . . . . . . . 15 . 7 . Electromagnetic 11 | . . . . . . . . . . 9 . 2 . . . Robot Hit Streak 22 | . 14 8 5 . . 8 19 14 2 7 . 17 15 22 18 Robot Miss Streak 3 | . 2 3 2 . . 3 2 3 1 1 . 3 2 2 2 Penetration Max . | . . . . . . . . . . . . . . . . Secondary Targets 3 | . . . . . . . . . . . . . . . 3 Max Gunslinging Chain 1 | . . . . . . . . . . . . . . . 1 Shots Hit Robots 322 | . 18 27 13 . . 19 47 54 2 7 . 36 34 39 26 Core Hits 172 | . 8 12 6 . . 22 21 16 1 8 . 24 15 30 9 Critical Kills 4 | . . . . . . . . . . . . . 3 1 . Critical Parts Destroyed . | . . . . . . . . . . . . . . . . Critical Strikes 6 | . . 1 1 . . . . . . . . . 3 1 . Meltdown 4 | . . . . . . . . . . . . . 3 1 . Blast 2 | . . 1 1 . . . . . . . . . . . . Melee Attacks . | . . . . . . . . . . . . . . . . Impact . | . . . . . . . . . . . . . . . . Slashing . | . . . . . . . . . . . . . . . . Piercing . | . . . . . . . . . . . . . . . . Sneak Attacks . | . . . . . . . . . . . . . . . . Combat Hostiles . | . . . . . . . . . . . . . . . . Follow-up Attacks . | . . . . . . . . . . . . . . . . Damage Inflicted 11521 | . 250 480 227 . . 303 1272 1545 68 513 . 2143 1184 3042 494 Guns 1521 | . 250 . . . . 303 . . . . . . 36 438 494 Cannons 6009 | . . 480 227 . . . 1272 1545 68 28 . 761 1148 480 . Explosions 3991 | . . . . . . . . . . 485 . 1382 . 2124 . Melee . | . . . . . . . . . . . . . . . . Ramming . | . . . . . . . . . . . . . . . . Kinetic 808 | . 101 480 227 . . . . . . . . . . . . Thermal 6722 | . 149 . . . . 303 1272 1545 68 28 . 761 1184 918 494 Explosive 3339 | . . . . . . . . . . . . 1215 . 2124 . Electromagnetic 652 | . . . . . . . . . . 485 . 167 . . . Impact . | . . . . . . . . . . . . . . . . Slashing . | . . . . . . . . . . . . . . . . Piercing . | . . . . . . . . . . . . . . . . Highest Corruption 9 | . . . . . . . . 3 3 3 3 3 1 1 9 Average Corruption 2 | . . . . . . . . 1 3 3 3 3 1 1 1 Corruption Purged . | . . . . . . . . . . . . . . . . Corruption Blocked . | . . . . . . . . . . . . . . . . Effects 70 | . . . . . . . . 12 4 14 5 20 5 8 2 Message Errors 15 | . . . . . . . . 4 2 4 1 2 . 1 1 Matter Fused 15 | . . . . . . . . . . 4 1 5 1 3 1 Heat Flow Errors 10 | . . . . . . . . 2 . 1 1 4 . 2 . Energy Discharges 10 | . . . . . . . . 4 1 1 2 1 1 . . Parts Rejected 1 | . . . . . . . . . . . . 1 . . . Data Loss (minor) 13 | . . . . . . . . 2 1 3 . 5 1 1 . Data Loss (major) 4 | . . . . . . . . . . 1 . 1 1 1 . Misfires 2 | . . . . . . . . . . . . 1 1 . . Overload Shots 1 | . . . . . . . . . . 1 . . . . . Overflow Damage 253 | . . 18 15 . . . 12 104 . 21 . 23 1 59 . Projectiles 148 | . . 18 15 . . . 12 79 . . . 23 1 . . Explosions 105 | . . . . . . . . 25 . 21 . . . 59 . Melee . | . . . . . . . . . . . . . . . . Knockbacks 7 | . . 7 . . . . . . . . . . . . . Impact . | . . . . . . . . . . . . . . . . Kinetic 5 | . . 5 . . . . . . . . . . . . . Secondary 2 | . . 2 . . . . . . . . . . . . . Self-Inflicted Damage 131 | . . . . . . . . 70 . . . 61 . . . Shots 3 | . . . . . . . . 1 . . . 2 . . . Rammed . | . . . . . . . . . . . . . . . . Targets Rammed . | . . . . . . . . . . . . . . . . Kicked . | . . . . . . . . . . . . . . . . Crushed . | . . . . . . . . . . . . . . . . Highest Temperature 335 | . 180 19 . . . 335 2 227 . 73 168 228 72 188 2 Average Temperature 81 | . 71 11 . . . 190 2 69 . 28 148 60 18 121 2 Received Heat Transfer 2261 | . 36 64 27 . . 216 279 285 . 75 . 282 282 232 483 Effects 1 | . . . . . . 1 . . . . . . . . . Short Circuit 1 | . . . . . . 1 . . . . . . . . . Siege Activations . | . . . . . . . . . . . . . . . . Robots Corrupted 3 | . . . . . . . . . . 3 . . . . . Combat Hostiles 2 | . . . . . . . . . . 2 . . . . . Parts Fried 4 | . . . . . . . . . . 4 . . . . . Impact Corruptions . | . . . . . . . . . . . . . . . . Robots Melted 5 | . . . . . . . . . . . . . 3 1 1 Combat Hostiles 4 | . . . . . . . . . . . . . 2 1 1 Parts Melted 20 | . . . . . . 2 4 3 . . . . 8 1 2 Heat Transferred 10000 | . 370 . . . . 577 1739 1998 74 37 . 999 1730 1514 962 Parts Sabotaged . | . . . . . . . . . . . . . . . . Parts Stolen . | . . . . . . . . . . . . . . . . Parts Stripped . | . . . . . . . . . . . . . . . . Power Chain Reactions . | . . . . . . . . . . . . . . . . Missiles Intercepted . | . . . . . . . . . . . . . . . . Alert | -11 -10 -10 -9 -9 -9 -8 -8 -7 -7 -7 -7 -6 -6 -6 -6 ------- Run | Jun Mat Min Mat Min Exi Min Mat Fac Low Low Dat Pro Fac Low Low Peak Influence 529 | . 177 142 222 86 . 40 265 121 . . . . 529 . . Initial 514 | . . 2 55 86 . . 13 86 . . . . 514 . . Average 124 | . 82 83 151 86 . 28 117 57 . . . . 224 . . Maximum Alert Level 2 | . . . 1 . . . 1 . . . . . 2 . . Low Security (%) 85 | 100 100 100 72 100 . 100 96 100 . . . . 58 . . Level 1 8 | . . . 27 . . . 3 . . . . . 22 . . Level 2 5 | . . . . . . . . . . . . . 19 . . Level 3 . | . . . . . . . . . . . . . . . . Level 4 . | . . . . . . . . . . . . . . . . Level 5 . | . . . . . . . . . . . . . . . . High Security . | . . . . . . . . . . . . . . . . Max Security . | . . . . . . . . . . . . . . . . Squads Dispatched 14 | . 1 . . . . . 3 6 . . . . 3 . 1 Investigation 3 | . 1 . . . . . . 2 . . . . . . . Extermination 4 | . . . . . . . . 2 . . . . 2 . . Reinforcement 6 | . . . . . . . 3 2 . . . . 1 . . Assault 1 | . . . . . . . . . . . . . . . 1 Garrison . | . . . . . . . . . . . . . . . . Intercept . | . . . . . . . . . . . . . . . . Searches Triggered 1 | . . . . . . . . . . . . . 1 . . Construction Impeded 1 | . . . . . . . . . . . . . 1 . . Haulers Reinforced . | . . . . . . . . . . . . . . . . Active Scanning Responses . | . . . . . . . . . . . . . . . . Cargo Convoy Interrupts . | . . . . . . . . . . . . . . . . Stealth | -11 -10 -10 -9 -9 -9 -8 -8 -7 -7 -7 -7 -6 -6 -6 -6 --------- Run | Jun Mat Min Mat Min Exi Min Mat Fac Low Low Dat Pro Fac Low Low Distress Signals 7 | . 2 . 2 . . . 3 . . . . . . . . Communications Jammed . | . . . . . . . . . . . . . . . . Distress Signals . | . . . . . . . . . . . . . . . . Times Spotted 161 | . 10 8 12 . . 3 28 17 1 12 . 18 12 21 19 Peak Tracking Total 13 | . 3 4 6 . . 3 5 3 1 5 . 4 6 9 13 Tactical Retreats 8 | . 1 . 1 . . . 1 1 . 2 . 1 . 1 . Traps | -11 -10 -10 -9 -9 -9 -8 -8 -7 -7 -7 -7 -6 -6 -6 -6 ------- Run | Jun Mat Min Mat Min Exi Min Mat Fac Low Low Dat Pro Fac Low Low Traps Triggered 9 | . 1 . . . . . . 6 . . . . 2 . . Indirectly . | . . . . . . . . . . . . . . . . Trap Hack Attempts . | . . . . . . . . . . . . . . . . Triggered . | . . . . . . . . . . . . . . . . Disarmed . | . . . . . . . . . . . . . . . . Reprogrammed . | . . . . . . . . . . . . . . . . Reused . | . . . . . . . . . . . . . . . . Traps Extracted . | . . . . . . . . . . . . . . . . Installed . | . . . . . . . . . . . . . . . . Triggered 3 | . . . . . . . . . . 3 . . . . . Power Sources Rigged 16 | . . . . . . . 3 2 . 4 . 1 5 1 . Exploded 7 | . . . . . . . 1 1 . . . . 1 . 4 Machines | -11 -10 -10 -9 -9 -9 -8 -8 -7 -7 -7 -7 -6 -6 -6 -6 ---------- Run | Jun Mat Min Mat Min Exi Min Mat Fac Low Low Dat Pro Fac Low Low Machines Disabled 6 | . . . . . . . . 2 . . . . 2 2 . Max in Single Turn 2 | . . . . . . . . 2 . . . . 1 2 . Machines Repaired . | . . . . . . . . . . . . . . . . Machines Sabotaged . | . . . . . . . . . . . . . . . . Overloaded Fab Kills . | . . . . . . . . . . . . . . . . Hacking | -11 -10 -10 -9 -9 -9 -8 -8 -7 -7 -7 -7 -6 -6 -6 -6 --------- Run | Jun Mat Min Mat Min Exi Min Mat Fac Low Low Dat Pro Fac Low Low Machines Accessed 25 | . 6 . 1 . 2 . 3 4 . 1 4 . 4 . . Terminals 12 | . 5 . 1 . . . 2 2 . . . . 2 . . Fabricators 1 | . . . . . . . . 1 . . . . . . . Repair Stations . | . . . . . . . . . . . . . . . . Recycling Units 3 | . 1 . . . . . . . . . . . 2 . . Scanalyzers . | . . . . . . . . . . . . . . . . Garrison Access 2 | . . . . . . . 1 1 . . . . . . . Total Hacks 67 | . 13 . 1 . 2 . 6 7 . 1 30 . 7 . . Successful 42 | . 4 . . . 2 . 1 1 . 1 30 . 3 . . Failed 25 | . 9 . 1 . . . 5 6 . . . . 4 . . Catastrophic 7 | . 1 . . . . . 1 3 . . . . 2 . . Database Lockouts . | . . . . . . . . . . . . . . . . Manual 21 | . 10 . . . 1 . 4 2 . . . . 4 . . Terminals 24 | . 12 . 1 . . . 4 3 . . . . 4 . . Fabricators 2 | . . . . . . . . 2 . . . . . . . Repair Stations . | . . . . . . . . . . . . . . . . Recycling Units 4 | . 1 . . . . . . . . . . . 3 . . Scanalyzers . | . . . . . . . . . . . . . . . . Garrison Access 4 | . . . . . . . 2 2 . . . . . . . Terminal Hacks 36 | . 2 . . . 2 . . . . 1 30 . 1 . . Record 12 | . . . . . 1 . . . . . 11 . . . . Part Schematic 14 | . 1 . . . . . . . . . 13 . . . . Robot Schematic 3 | . . . . . . . . . . . 3 . . . . Prototype ID Bank 3 | . . . . . . . . . . . 3 . . . . Open Door 1 | . . . . . . . . . . 1 . . . . . Branch Access Points 1 | . . . . . . . . . . . . . 1 . . Hauler Manifests 1 | . 1 . . . . . . . . . . . . . . EX-Prototype ID Bank 1 | . . . . . 1 . . . . . . . . . . Fabricator Hacks 1 | . . . . . . . . 1 . . . . . . . Network Status 1 | . . . . . . . . 1 . . . . . . . Repair Station Hacks . | . . . . . . . . . . . . . . . . Recycling Unit Hacks 3 | . 1 . . . . . . . . . . . 2 . . Retrieve Components 3 | . 1 . . . . . . . . . . . 2 . . Scanalyzer . | . . . . . . . . . . . . . . . . Garrison Access Hacks . | . . . . . . . . . . . . . . . . Unauthorized Hacks 2 | . 1 . . . . . 1 . . . . . . . . Terminals 2 | . 1 . . . . . 1 . . . . . . . . Track 1 | . 1 . . . . . . . . . . . . . . Disrupt 1 | . . . . . . . 1 . . . . . . . . Fabricators . | . . . . . . . . . . . . . . . . Repair Stations . | . . . . . . . . . . . . . . . . Recycling Units . | . . . . . . . . . . . . . . . . Scanalyzers . | . . . . . . . . . . . . . . . . Garrison Access . | . . . . . . . . . . . . . . . . Data Cores Recovered 1 | . . . 1 . . . . . . . . . . . . Used . | . . . . . . . . . . . . . . . . Hacking Detections 15 | . 4 . 1 . . . 3 4 . . . . 3 . . Full Trace Events 1 | . . . . . . . . 1 . . . . . . . Feedback Events . | . . . . . . . . . . . . . . . . Feedback Blocked . | . . . . . . . . . . . . . . . . Robot Schematics Acquired 3 | . . . . . . . . . . . 3 . . . . Robots Built . | . . . . . . . . . . . . . . . . Authchips . | . . . . . . . . . . . . . . . . Time . | . . . . . . . . . . . . . . . . Total Robot Build Rating . | . . . . . . . . . . . . . . . . Part Schematics Acquired 14 | . 1 . . . . . . . . . 13 . . . . Parts Built . | . . . . . . . . . . . . . . . . Authchips . | . . . . . . . . . . . . . . . . Time . | . . . . . . . . . . . . . . . . Total Part Build Rating . | . . . . . . . . . . . . . . . . Parts Repaired . | . . . . . . . . . . . . . . . . Time . | . . . . . . . . . . . . . . . . Parts Recycled . | . . . . . . . . . . . . . . . . Recycled Matter . | . . . . . . . . . . . . . . . . Retrieved Matter . | . . . . . . . . . . . . . . . . Retrieved Components 6 | . 4 . . . . . . . . . . . 2 . . Parts Scanalyzed . | . . . . . . . . . . . . . . . . Part Schematics Acquired . | . . . . . . . . . . . . . . . . Parts Damaged . | . . . . . . . . . . . . . . . . Bothacking | -11 -10 -10 -9 -9 -9 -8 -8 -7 -7 -7 -7 -6 -6 -6 -6 ------------ Run | Jun Mat Min Mat Min Exi Min Mat Fac Low Low Dat Pro Fac Low Low Used RIF Installer . | . . . . . . . . . . . . . . . . Robots Hacked . | . . . . . . . . . . . . . . . . Non-combat . | . . . . . . . . . . . . . . . . Combat . | . . . . . . . . . . . . . . . . Robot Hacks Applied . | . . . . . . . . . . . . . . . . Relay Couplers Released . | . . . . . . . . . . . . . . . . Fabnet Peak Effective % . | . . . . . . . . . . . . . . . . Robots Rewired 3 | . . . . . . . . 1 . . . . . 2 . Allies Hacked . | . . . . . . . . . . . . . . . . Hacks Repelled . | . . . . . . . . . . . . . . . . Allies | -11 -10 -10 -9 -9 -9 -8 -8 -7 -7 -7 -7 -6 -6 -6 -6 -------- Run | Jun Mat Min Mat Min Exi Min Mat Fac Low Low Dat Pro Fac Low Low Total Allies 5 | . . . . . . . . 1 . . . 1 . 2 1 Largest Group 2 | . . . . . . . . 1 . . . 1 . 2 1 Highest-Rated Group 180 | . . . . . . . . 16 . . . 96 . 58 180 Highest-Rated Ally 180 | . . . . . . . . 16 . . . 96 . 29 180 Total Orders . | . . . . . . . . . . . . . . . . Ally Attacks 60 | . . . . . . . . 3 . . . 42 . 15 . Total Damage 1711 | . . . . . . . . 36 . . . 1464 . 211 . Kills 14 | . . . . . . . . 1 . . . 9 . 4 . Allies Corrupted . | . . . . . . . . . . . . . . . . Allies Melted . | . . . . . . . . . . . . . . . . Intel | -11 -10 -10 -9 -9 -9 -8 -8 -7 -7 -7 -7 -6 -6 -6 -6 ------- Run | Jun Mat Min Mat Min Exi Min Mat Fac Low Low Dat Pro Fac Low Low Robot Analysis Total . | . . . . . . . . . . . . . . . . Derelict Logs Recovered 9 | . . 2 . . . . . . 1 1 . 3 . 1 1 Drone Launches . | . . . . . . . . . . . . . . . . Drone Recoveries . | . . . . . . . . . . . . . . . . Exploration | -11 -10 -10 -9 -9 -9 -8 -8 -7 -7 -7 -7 -6 -6 -6 -6 ------------- Run | Jun Mat Min Mat Min Exi Min Mat Fac Low Low Dat Pro Fac Low Low Turns Passed 9812 | 46 583 382 243 65 282 351 955 1494 301 744 136 1023 1823 1115 269 Spaces Moved 5390 | 36 445 228 185 40 263 221 536 842 182 421 91 354 819 601 126 Core 4 | 1 . . . . . . . . . . . . . . 3 Treads 10 | . . . . . . 4 . . . . . . . . 6 Legs . | . . . . . . . . . . . . . . . . Wheels 5376 | 35 445 228 185 40 263 217 536 842 182 421 91 354 819 601 117 Hover . | . . . . . . . . . . . . . . . . Flight . | . . . . . . . . . . . . . . . . Fastest Speed 50 | 50 95 110 100 100 100 115 115 120 160 145 145 160 160 145 50 Average Speed 147 | 87 105 111 103 100 103 117 116 141 160 159 145 205 198 156 160 Slowest Speed 320 | 95 115 115 105 100 115 240 145 160 160 160 160 210 240 160 320 Overloaded Moves . | . . . . . . . . . . . . . . . . Propulsion Burnouts . | . . . . . . . . . . . . . . . . Robots Hopped . | . . . . . . . . . . . . . . . . Cave-ins Triggered . | . . . . . . . . . . . . . . . . Exploration Rate (%) 43 | 3 66 55 16 9 61 57 52 27 34 60 71 65 19 87 21 Regions Visited 15 Branch Regions 10 Pre-discovered Areas 6 | . . . . . 1 . . . 1 1 1 1 . . 1 Known Exits Taken 2 | . . . . . . . . . . . . . 1 1 . Unknown Exits Taken 13 | 1 1 1 1 1 1 1 1 1 1 1 1 1 . . . Scrap Searched 9 | . . 1 . . . 1 . . . 2 . 1 . 3 1 Spaces Dug 67 | . . . . . . . . . . . . 34 3 30 . Terrain Destroyed 178 | . . . . . . . 12 9 1 1 . 87 9 59 . Melee . | . . . . . . . . . . . . . . . . Projectile 33 | . . . . . . . 12 5 1 1 . 2 9 3 . AOE 145 | . . . . . . . . 4 . . . 85 . 56 . Terrain Rammed . | . . . . . . . . . . . . . . . . Walls Destroyed . | . . . . . . . . . . . . . . . . Machines Disabled . | . . . . . . . . . . . . . . . . Actions | -11 -10 -10 -9 -9 -9 -8 -8 -7 -7 -7 -7 -6 -6 -6 -6 --------- Run | Jun Mat Min Mat Min Exi Min Mat Fac Low Low Dat Pro Fac Low Low Total 6830 | 47 538 309 215 51 276 290 821 1072 188 482 94 593 973 719 162 Wait 751 | . 52 55 6 5 . 48 179 113 5 14 . 183 51 32 8 Move 5375 | 35 444 227 184 39 262 220 535 841 181 420 90 353 818 600 126 Hop . | . . . . . . . . . . . . . . . . Pick Up 105 | 6 13 1 6 . 4 2 26 16 . 9 . 2 12 7 1 Fast Attach 49 | 6 3 . . . . . 3 7 . 1 2 4 15 6 2 Attach 42 | . 2 . 3 . 2 4 6 6 . 1 . 6 1 6 5 Detach 15 | . 2 . . . . . 3 3 . . . 1 4 2 . Swap 69 | . 3 1 . . 2 1 10 8 . 11 . 9 14 10 . Drop 99 | . 8 2 3 . 6 1 25 13 . 12 2 . 21 2 4 Fire 251 | . 11 23 13 7 . 14 31 38 2 10 . 34 24 28 16 Melee . | . . . . . . . . . . . . . . . . Ram . | . . . . . . . . . . . . . . . . Kick . | . . . . . . . . . . . . . . . . Crush . | . . . . . . . . . . . . . . . . Escape Stasis 31 | . . . . . . . . 23 . . . . 8 . . Rewire 27 | . . . . . . . . 2 . . . . . 25 . Trap 16 | . . . . . . . 3 2 . 4 . 1 5 1 . Miscellaneous . | . . . . . . . . . . . . . . . . Route ------- -11/Junkyard -10/Materials (discovered 3 exits: *Mat x2 / [*Min]) -10/Mines -9/Materials -9/Mines -9/Exiles -8/Mines -8/Materials -7/Factory -7/Lower Caves -7/Lower Caves -7/Data Miner -6/Proximity Caves -6/Factory (discovered 5 exits: *Fac / *Low x2 / Ext x2) -6/Lower Caves -6/Lower Caves (discovered 1 exit: *Fac) History --------- Turn | Location | Event 15 | -11/Junkyard | Discovered new exit (range 15) 47 | -11/Junkyard | Entered Materials 153 | -10/Materials | Discovered new exit (range 13) 269 | -10/Materials | Discovered new exit (range 13) 304 | -10/Materials | Build established: Mutant 514 | -10/Materials | Discovered new exit (range 16) 630 | -10/Materials | Entered Mines 693 | -10/Mines | Learned Materials non-interactive machine intel 879 | -10/Mines | Assembled infested the area 958 | -10/Mines | Discovered new exit (range 16) 999 | -10/Mines | Learned Materials emergency access door positions 1012 | -10/Mines | Entered Materials 1012 | -9/Materials | Evolved 2 slots: Propulsion x2 1014 | -9/Materials | Loaded intel: 40 non-interactive machine locations 1197 | -9/Materials | Discovered new exit (range 12) 1255 | -9/Materials | Entered Mines 1316 | -9/Mines | Deemed a non-threat by the Exiles lab entrance 1316 | -9/Mines | Discovered new exit (range 5) 1320 | -9/Mines | Entered Exiles 1355 | -9/Exiles | Met 8R-AWN 1371 | -9/Exiles | Met EX-HEX 1399 | -9/Exiles | Met EX-BIN 1413 | -9/Exiles | Aligned with FarCom system 1414 | -9/Exiles | Given EX-Vault access code 1438 | -9/Exiles | Opened EX-Vault 1445 | -9/Exiles | Found PSU Rigger 1468 | -9/Exiles | Warned to stay clear of 0b10 Research branches 1497 | -9/Exiles | Met EX-DEC 1509 | -9/Exiles | Learned location of Zion (-6) 1590 | -9/Exiles | Discovered new exit (range 14) 1602 | -9/Exiles | Left Exiles lab with PSU Rigger 1602 | -9/Exiles | Entered Mines 1670 | -8/Mines | Lost 4 parts (4n) 1921 | -8/Mines | Discovered new exit (range 7) 1953 | -8/Mines | Entered Materials 1953 | -8/Materials | Evolved 2 slots: Utility x2 2858 | -8/Materials | Discovered new exit (range 16) 2908 | -8/Materials | Entered Factory 2908 | -7/Factory | Evolved 2 slots: Utility x2 3013 | -7/Factory | Build established: Scavenger-Mutant 3441 | -7/Factory | Build established: Mutant 4091 | -7/Factory | Build established: Scavenger-Mutant 4364 | -7/Factory | Discovered new exit (range 17) 4402 | -7/Factory | Entered Lower Caves 4592 | -7/Lower Caves | Build established: Mutant 4671 | -7/Lower Caves | Discovered new exit (range 12) 4703 | -7/Lower Caves | Entered another Lower Caves area 4936 | -7/Lower Caves | Attracted the attention of an 0b10 checkpoint 5327 | -7/Lower Caves | Learned location of Extension (-6) 5381 | -7/Lower Caves | Discovered new exit (range 10) 5447 | -7/Lower Caves | Entered Data Miner 5448 | -7/Data Miner | Discovered new exit (range 6) 5473 | -7/Data Miner | Met Data Miner 5505 | -7/Data Miner | Learned location of Section 7 (-2) 5505 | -7/Data Miner | Acquired the access code to Warlord's prototype stash 5525 | -7/Data Miner | Received God Mode back door access code from Data Miner 5583 | -7/Data Miner | Entered Proximity Caves 5586 | -6/Proximity Caves | Spotter reported a threat 5586 | -6/Proximity Caves | Spotter reported a threat 5598 | -6/Proximity Caves | Escorted by Enhanced Grunt 5616 | -6/Proximity Caves | Spotted B-75 Beast 5651 | -6/Proximity Caves | Allies destroyed B-75 Beast 5676 | -6/Proximity Caves | Lost 5 parts (1p1n2u1w) 5881 | -6/Proximity Caves | Spotter reported a threat 5917 | -6/Proximity Caves | Learned location of 1 exit from Factory 6088 | -6/Proximity Caves | Lost 4 parts (2n1u1w) 6134 | -6/Proximity Caves | Build established: Trapper-Mutant 6338 | -6/Proximity Caves | Learned Factory terminal intel 6351 | -6/Proximity Caves | Discovered new exit (range 9) 6507 | -6/Proximity Caves | Received a Behemoth hack from an annoying Tinkerer 6606 | -6/Proximity Caves | Entered Factory 6606 | -6/Factory | Evolved 2 slots: Power x1, Utility x1 6607 | -6/Factory | Identified exit to Extension 6608 | -6/Factory | Loaded intel: 28 terminal locations 6956 | -6/Factory | Search patrols dispatched 7555 | -6/Factory | Discovered new exit (range 12) 7588 | -6/Factory | Identified exit to Factory 7867 | -6/Factory | Identified exit to Lower Caves 8429 | -6/Factory | Entered Lower Caves 8441 | -6/Lower Caves | Identified exit to Lower Caves 8473 | -6/Lower Caves | Attracted the attention of an 0b10 outpost 8536 | -6/Lower Caves | Destroyed 8 combat bots 8779 | -6/Lower Caves | Spotted B-75 Beast 9308 | -6/Lower Caves | Destroyed B-75 Beast 9338 | -6/Lower Caves | Lost 5 parts (1p1n2u1w) 9363 | -6/Lower Caves | Encountered a Warlord checkpoint 9544 | -6/Lower Caves | Entered another Lower Caves area 9604 | -6/Lower Caves | Build established: Scavenger-Mutant 9636 | -6/Lower Caves | Discovered exit to Factory (range 10) 9735 | -6/Lower Caves | Attracted the attention of an 0b10 outpost 9789 | -6/Lower Caves | Core integrity fell below 50% 9809 | -6/Lower Caves | Core integrity fell below 20% 9812 | -6/Lower Caves | Released all parts (1) 9813 | -6/Lower Caves | Destroyed by G-67 Veteran with Field Laser Last Messages --------------- 09804_ Com. Wheel destroyed. 09805_ Dropped Rigged Imp. Deuterium Engine. 09806_ Rigged Imp. Deuterium Engine explodes. 09806_ G-50 Soldier destroyed. A strange signal echoes through the caves. 09808_ Penetrated by Slug. 09808_ Imp. Medium Treads destroyed. 09808_ Dropped Rigged Cld. Deuterium Engine. 09808_ M-28 Smith repairs G-67 Veteran. 09809_ B-48 Gladiator heat short circuits Rnf. Deuterium Engine. 09809_ Imp. Medium Treads destroyed. 09810_ Rigged Cld. Deuterium Engine explodes. 09810_ L-41 Fighter destroyed. 09810_ G-50 Soldier destroyed. 09811_ B/KHSXGLB/ K4Z0GTJ6JI7BZ